[Event "Titled Tuesday Blitz November 01 Early 2022"]
[White "Dushyant Sharma"]
[Black "Vovk, Orest"]
[WhiteFideId "25065130"]
[BlackFideId "14113490"]
[WhiteElo "2270"]
[BlackElo "2215"]
[Result "1-0"]
[Round "06"]
[TimeControl "180+1"]
[Date "2022.11.02"]
[WhiteClock "0:00:27"]
[BlackClock "0:00:44"]

1. e4 {[%clk 0:03:00]}  g5 {[%clk 0:02:55]} 2. d4 {[%clk 0:03:00]}  h6 {[%clk 0:02:53]} 3. Nc3 {[%clk 0:03:00]}  Bg7 {[%clk 0:02:52]} 4. Be3 {[%clk 0:03:00]}  c5 {[%clk 0:02:47]} 5. dxc5 {[%clk 0:02:56]}  Bxc3+ {[%clk 0:02:41]} 6. bxc3 {[%clk 0:02:57]}  Nc6 {[%clk 0:02:41]} 7. Bd3 {[%clk 0:02:55]}  Qa5 {[%clk 0:02:41]} 8. Ne2 {[%clk 0:02:53]}  Nf6 {[%clk 0:02:37]} 9. O-O {[%clk 0:02:53]}  Ng4 {[%clk 0:02:34]} 10. Qd2 {[%clk 0:02:50]}  Nxe3 {[%clk 0:02:31]} 11. Qxe3 {[%clk 0:02:51]}  b6 {[%clk 0:02:28]} 12. cxb6 {[%clk 0:02:47]}  axb6 {[%clk 0:02:29]} 13. Rab1 {[%clk 0:02:42]}  Qc5 {[%clk 0:02:26]} 14. Nd4 {[%clk 0:02:27]}  Qxc3 {[%clk 0:02:16]} 15. Nxc6 {[%clk 0:02:13]}  Qxc6 {[%clk 0:02:17]} 16. Rxb6 {[%clk 0:02:11]}  Qc7 {[%clk 0:02:15]} 17. Qd4 {[%clk 0:02:00]}  f6 {[%clk 0:02:11]} 18. Re1 {[%clk 0:01:38]}  Ra5 {[%clk 0:01:55]} 19. Rb3 {[%clk 0:01:23]}  e5 {[%clk 0:01:47]} 20. Qb4 {[%clk 0:01:15]}  Qc5 {[%clk 0:01:45]} 21. Qxc5 {[%clk 0:01:04]}  Rxc5 {[%clk 0:01:46]} 22. a4 {[%clk 0:01:03]}  Ke7 {[%clk 0:01:40]} 23. Rb8 {[%clk 0:00:58]}  Rd8 {[%clk 0:01:20]} 24. Ra1 {[%clk 0:00:49]}  Ra5 {[%clk 0:01:16]} 25. Rb5 {[%clk 0:00:47]}  Ra7 {[%clk 0:01:12]} 26. a5 {[%clk 0:00:46]}  Ba6 {[%clk 0:01:10]} 27. Rb6 {[%clk 0:00:45]}  Bxd3 {[%clk 0:01:04]} 28. cxd3 {[%clk 0:00:46]}  Rc8 {[%clk 0:01:04]} 29. Kf1 {[%clk 0:00:37]}  Rc5 {[%clk 0:00:50]} 30. a6 {[%clk 0:00:37]}  Kd8 {[%clk 0:00:48]} 31. Rxf6 {[%clk 0:00:29]}  Kc7 {[%clk 0:00:48]} 32. Rxh6 {[%clk 0:00:28]}  d6 {[%clk 0:00:45]} 33. Rh7+ {[%clk 0:00:26]}  Kb8 {[%clk 0:00:44]} 34. Rb1+ {[%clk 0:00:27]} 1-0


[Site "https://www.chess.com"]

[Event "Titled Tuesday Blitz November 01 Early 2022"]
[White "Fathy, Elameir"]
[Black "Yurasova, Daria"]
[WhiteFideId "10600396"]
[BlackFideId "34146919"]
[WhiteElo "2311"]
[BlackElo "2044"]
[Result "0-1"]
[Round "06"]
[TimeControl "180+1"]
[Date "2022.11.02"]
[WhiteClock "0:00:03"]
[BlackClock "0:00:19"]

1. d4 {[%clk 0:03:00]}  d5 {[%clk 0:02:53]} 2. c4 {[%clk 0:03:00]}  dxc4 {[%clk 0:02:53]} 3. Nf3 {[%clk 0:03:00]}  Nf6 {[%clk 0:02:53]} 4. e3 {[%clk 0:03:00]}  e6 {[%clk 0:02:53]} 5. Bxc4 {[%clk 0:03:00]}  a6 {[%clk 0:02:54]} 6. O-O {[%clk 0:02:53]}  Be7 {[%clk 0:02:52]} 7. Nc3 {[%clk 0:02:51]}  b5 {[%clk 0:02:53]} 8. Be2 {[%clk 0:02:49]}  Bb7 {[%clk 0:02:53]} 9. Ne5 {[%clk 0:02:49]}  O-O {[%clk 0:02:48]} 10. Bf3 {[%clk 0:02:49]}  Nd5 {[%clk 0:02:43]} 11. Qe2 {[%clk 0:02:35]}  Nd7 {[%clk 0:02:36]} 12. Nxd5 {[%clk 0:02:33]}  Bxd5 {[%clk 0:02:36]} 13. Bxd5 {[%clk 0:02:31]}  exd5 {[%clk 0:02:36]} 14. Nc6 {[%clk 0:02:31]}  Qe8 {[%clk 0:02:37]} 15. Bd2 {[%clk 0:02:12]}  Nb6 {[%clk 0:02:34]} 16. a3 {[%clk 0:01:54]}  Qxc6 {[%clk 0:02:32]} 17. Rac1 {[%clk 0:01:45]}  Qd7 {[%clk 0:02:30]} 18. Bb4 {[%clk 0:01:42]}  Nc4 {[%clk 0:02:24]} 19. b3 {[%clk 0:01:38]}  Bxb4 {[%clk 0:02:22]} 20. axb4 {[%clk 0:01:37]}  Nd6 {[%clk 0:02:22]} 21. Rc5 {[%clk 0:01:35]}  Ne4 {[%clk 0:02:19]} 22. Rc2 {[%clk 0:01:33]}  Qd6 {[%clk 0:02:18]} 23. f3 {[%clk 0:01:29]}  Nf6 {[%clk 0:02:18]} 24. Qd2 {[%clk 0:01:27]}  Rfe8 {[%clk 0:02:07]} 25. Rfc1 {[%clk 0:01:27]}  Rac8 {[%clk 0:02:06]} 26. Rc6 {[%clk 0:01:28]}  Qe7 {[%clk 0:02:05]} 27. Kf2 {[%clk 0:01:28]}  Qd7 {[%clk 0:01:45]} 28. Rxa6 {[%clk 0:01:24]}  Qf5 {[%clk 0:01:46]} 29. Kg1 {[%clk 0:01:21]}  h5 {[%clk 0:01:44]} 30. Rac6 {[%clk 0:01:01]}  h4 {[%clk 0:01:29]} 31. h3 {[%clk 0:01:02]}  Qg5 {[%clk 0:01:25]} 32. Kf2 {[%clk 0:00:47]}  Qg3+ {[%clk 0:01:24]} 33. Kg1 {[%clk 0:00:47]}  Re7 {[%clk 0:01:23]} 34. R6c3 {[%clk 0:00:30]}  Rce8 {[%clk 0:01:21]} 35. Qe1 {[%clk 0:00:25]}  Qd6 {[%clk 0:01:06]} 36. Qxh4 {[%clk 0:00:19]}  Rxe3 {[%clk 0:01:04]} 37. Rxe3 {[%clk 0:00:20]}  Rxe3 {[%clk 0:01:05]} 38. Rc5 {[%clk 0:00:13]}  c6 {[%clk 0:01:00]} 39. Qf2 {[%clk 0:00:09]}  Re6 {[%clk 0:00:59]} 40. Rc1 {[%clk 0:00:06]}  Qf4 {[%clk 0:00:58]} 41. Rd1 {[%clk 0:00:05]}  Qe3 {[%clk 0:00:53]} 42. Qxe3 {[%clk 0:00:03]}  Rxe3 {[%clk 0:00:54]} 43. Rc1 {[%clk 0:00:03]}  Rxb3 {[%clk 0:00:52]} 44. Rxc6 {[%clk 0:00:03]}  Rxb4 {[%clk 0:00:52]} 45. Rc8+ {[%clk 0:00:03]}  Kh7 {[%clk 0:00:52]} 46. Rb8 {[%clk 0:00:04]}  Rb2 {[%clk 0:00:49]} 47. Rb7 {[%clk 0:00:04]}  Kg6 {[%clk 0:00:49]} 48. Kh2 {[%clk 0:00:03]}  Nh5 {[%clk 0:00:48]} 49. h4 {[%clk 0:00:03]}  Nf4 {[%clk 0:00:48]} 50. Kg3 {[%clk 0:00:03]}  Nxg2 {[%clk 0:00:48]} 51. Rb6+ {[%clk 0:00:04]}  f6 {[%clk 0:00:48]} 52. Kg4 {[%clk 0:00:03]}  Ne3+ {[%clk 0:00:48]} 53. Kf4 {[%clk 0:00:03]}  Nc4 {[%clk 0:00:47]} 54. Rb8 {[%clk 0:00:02]}  Rb3 {[%clk 0:00:40]} 55. h5+ {[%clk 0:00:03]}  Kxh5 {[%clk 0:00:37]} 56. Kf5 {[%clk 0:00:03]}  Rxf3+ {[%clk 0:00:37]} 57. Ke6 {[%clk 0:00:03]}  Ne3 {[%clk 0:00:28]} 58. Rxb5 {[%clk 0:00:03]}  g5 {[%clk 0:00:28]} 59. Rb8 {[%clk 0:00:03]}  f5 {[%clk 0:00:25]} 60. Kf6 {[%clk 0:00:02]}  Kg4 {[%clk 0:00:26]} 61. Rg8 {[%clk 0:00:02]}  Kf4 {[%clk 0:00:20]} 62. Rxg5 {[%clk 0:00:03]}  Ke4 {[%clk 0:00:20]} 63. Rh5 {[%clk 0:00:02]}  Kxd4 {[%clk 0:00:20]} 64. Rh3 {[%clk 0:00:03]}  Rxh3 {[%clk 0:00:19]} 0-1


[Site "https://www.chess.com"]

[Event "Titled Tuesday Blitz November 01 Early 2022"]
[White "Fernandez Hernandez, Gerardo"]
[Black "Begunov, Konstantin"]
[WhiteFideId "2207400"]
[BlackFideId "4118510"]
[WhiteElo "2243"]
[BlackElo "2225"]
[Result "0-1"]
[Round "06"]
[TimeControl "180+1"]
[Date "2022.11.02"]
[WhiteClock "0:00:01"]
[BlackClock "0:00:08"]

1. e4 {[%clk 0:03:00]}  c5 {[%clk 0:02:59]} 2. d3 {[%clk 0:03:00]}  d5 {[%clk 0:02:59]} 3. Nd2 {[%clk 0:03:00]}  Nc6 {[%clk 0:02:56]} 4. Ngf3 {[%clk 0:02:59]}  Nf6 {[%clk 0:02:52]} 5. g3 {[%clk 0:02:59]}  dxe4 {[%clk 0:02:46]} 6. dxe4 {[%clk 0:02:59]}  e6 {[%clk 0:02:46]} 7. Bg2 {[%clk 0:02:58]}  Be7 {[%clk 0:02:47]} 8. O-O {[%clk 0:02:58]}  O-O {[%clk 0:02:47]} 9. e5 {[%clk 0:02:58]}  Nd7 {[%clk 0:02:44]} 10. Re1 {[%clk 0:02:58]}  Qc7 {[%clk 0:02:44]} 11. Qe2 {[%clk 0:02:57]}  b6 {[%clk 0:02:32]} 12. c3 {[%clk 0:02:45]}  a5 {[%clk 0:02:23]} 13. a4 {[%clk 0:02:34]}  Ba6 {[%clk 0:02:23]} 14. Qe4 {[%clk 0:02:28]}  Rad8 {[%clk 0:02:14]} 15. Nf1 {[%clk 0:01:47]}  h6 {[%clk 0:01:50]} 16. Bf4 {[%clk 0:01:43]}  Rfe8 {[%clk 0:01:46]} 17. h4 {[%clk 0:01:42]}  Nf8 {[%clk 0:01:45]} 18. h5 {[%clk 0:01:41]}  Bd3 {[%clk 0:01:40]} 19. Qe3 {[%clk 0:01:34]}  c4 {[%clk 0:01:39]} 20. N1d2 {[%clk 0:01:02]}  Bc5 {[%clk 0:01:36]} 21. Nd4 {[%clk 0:01:02]}  Nxd4 {[%clk 0:01:13]} 22. cxd4 {[%clk 0:01:01]}  Bxd4 {[%clk 0:01:14]} 23. Qf3 {[%clk 0:00:59]}  Bxb2 {[%clk 0:01:13]} 24. Qg4 {[%clk 0:00:47]}  Kh8 {[%clk 0:01:00]} 25. Ne4 {[%clk 0:00:38]}  Bxa1 {[%clk 0:00:54]} 26. Rxa1 {[%clk 0:00:26]}  Nh7 {[%clk 0:00:36]} 27. Nd6 {[%clk 0:00:23]}  Re7 {[%clk 0:00:32]} 28. Rc1 {[%clk 0:00:16]}  Red7 {[%clk 0:00:30]} 29. Bf1 {[%clk 0:00:14]}  Bxf1 {[%clk 0:00:29]} 30. Kxf1 {[%clk 0:00:14]}  Qc5 {[%clk 0:00:26]} 31. Rxc4 {[%clk 0:00:12]}  Qxc4+ {[%clk 0:00:23]} 32. Nxc4 {[%clk 0:00:12]}  Rd4 {[%clk 0:00:20]} 33. Nd6 {[%clk 0:00:10]}  Kg8 {[%clk 0:00:19]} 34. Qf3 {[%clk 0:00:06]}  Rxa4 {[%clk 0:00:18]} 35. Bxh6 {[%clk 0:00:06]}  gxh6 {[%clk 0:00:16]} 36. Qxf7+ {[%clk 0:00:07]}  Kh8 {[%clk 0:00:16]} 37. Qe7 {[%clk 0:00:06]}  Rf8 {[%clk 0:00:14]} 38. Nf7+ {[%clk 0:00:06]}  Rxf7 {[%clk 0:00:13]} 39. Qxf7 {[%clk 0:00:06]}  Rb4 {[%clk 0:00:13]} 40. Qxe6 {[%clk 0:00:07]}  Rb1+ {[%clk 0:00:13]} 41. Kg2 {[%clk 0:00:06]}  b5 {[%clk 0:00:12]} 42. Qc8+ {[%clk 0:00:05]}  Kg7 {[%clk 0:00:13]} 43. Qc7+ {[%clk 0:00:05]}  Kf8 {[%clk 0:00:12]} 44. Qxa5 {[%clk 0:00:05]}  Ng5 {[%clk 0:00:12]} 45. Qa8+ {[%clk 0:00:04]}  Ke7 {[%clk 0:00:12]} 46. Qb7+ {[%clk 0:00:05]}  Ke6 {[%clk 0:00:12]} 47. Qc7 {[%clk 0:00:04]}  Nf7 {[%clk 0:00:10]} 48. Qc3 {[%clk 0:00:02]}  b4 {[%clk 0:00:10]} 49. Qc2 {[%clk 0:00:01]}  Ra1 {[%clk 0:00:08]} 0-1


[Site "https://www.chess.com"]

[Event "Titled Tuesday Blitz November 01 Early 2022"]
[White "Flis, Pawel"]
[Black "Li, Hui"]
[WhiteFideId "1112864"]
[BlackFideId "15400310"]
[WhiteElo "1836"]
[BlackElo "1954"]
[Result "0-1"]
[Round "06"]
[TimeControl "180+1"]
[Date "2022.11.02"]
[WhiteClock "0:00:07"]
[BlackClock "0:00:12"]

1. e4 {[%clk 0:01:34]}  e5 {[%clk 0:02:50]} 2. d4 {[%clk 0:01:33]}  exd4 {[%clk 0:02:49]} 3. Nf3 {[%clk 0:01:34]}  Nf6 {[%clk 0:02:48]} 4. e5 {[%clk 0:01:29]}  Ne4 {[%clk 0:02:48]} 5. Qxd4 {[%clk 0:01:30]}  d5 {[%clk 0:02:48]} 6. exd6 {[%clk 0:01:30]}  Nxd6 {[%clk 0:02:48]} 7. Nc3 {[%clk 0:01:30]}  Nc6 {[%clk 0:02:48]} 8. Qf4 {[%clk 0:01:31]}  Nf5 {[%clk 0:02:48]} 9. Bd3 {[%clk 0:01:23]}  Bd6 {[%clk 0:02:48]} 10. Qe4+ {[%clk 0:01:23]}  Qe7 {[%clk 0:02:48]} 11. O-O {[%clk 0:01:23]}  O-O {[%clk 0:02:48]} 12. Bg5 {[%clk 0:01:19]}  Qxe4 {[%clk 0:02:27]} 13. Bxe4 {[%clk 0:01:20]}  h6 {[%clk 0:02:14]} 14. Bd2 {[%clk 0:01:18]}  Bd7 {[%clk 0:02:08]} 15. Rfe1 {[%clk 0:01:17]}  Rfe8 {[%clk 0:02:07]} 16. Nb5 {[%clk 0:01:15]}  a6 {[%clk 0:02:00]} 17. Nxd6 {[%clk 0:01:14]}  Nxd6 {[%clk 0:02:01]} 18. Bd3 {[%clk 0:01:10]}  Bf5 {[%clk 0:01:56]} 19. Bxf5 {[%clk 0:01:06]}  Nxf5 {[%clk 0:01:56]} 20. Bc3 {[%clk 0:01:06]}  f6 {[%clk 0:01:45]} 21. h3 {[%clk 0:01:05]}  Kf7 {[%clk 0:01:45]} 22. Rad1 {[%clk 0:01:04]}  Rxe1+ {[%clk 0:01:43]} 23. Rxe1 {[%clk 0:01:04]}  Re8 {[%clk 0:01:42]} 24. Kf1 {[%clk 0:01:04]}  Rxe1+ {[%clk 0:01:40]} 25. Kxe1 {[%clk 0:01:05]}  Nd6 {[%clk 0:01:38]} 26. Kd2 {[%clk 0:01:04]}  Ne4+ {[%clk 0:01:37]} 27. Kd3 {[%clk 0:01:04]}  Nxc3 {[%clk 0:01:16]} 28. Kxc3 {[%clk 0:01:05]}  Ke6 {[%clk 0:01:17]} 29. a3 {[%clk 0:01:03]}  Kd5 {[%clk 0:01:16]} 30. Kd3 {[%clk 0:01:01]}  g6 {[%clk 0:01:04]} 31. c4+ {[%clk 0:01:00]}  Ke6 {[%clk 0:01:04]} 32. Ke4 {[%clk 0:00:57]}  f5+ {[%clk 0:01:03]} 33. Kd3 {[%clk 0:00:56]}  g5 {[%clk 0:01:01]} 34. b4 {[%clk 0:00:54]}  Ne5+ {[%clk 0:00:54]} 35. Ke3 {[%clk 0:00:44]}  Nxc4+ {[%clk 0:00:53]} 36. Kd4 {[%clk 0:00:43]}  Nxa3 {[%clk 0:00:53]} 37. Nd2 {[%clk 0:00:42]}  Nb5+ {[%clk 0:00:50]} 38. Kc5 {[%clk 0:00:41]}  Nd6 {[%clk 0:00:49]} 39. f3 {[%clk 0:00:40]}  Nf7 {[%clk 0:00:47]} 40. Nc4 {[%clk 0:00:36]}  Ne5 {[%clk 0:00:46]} 41. Ne3 {[%clk 0:00:35]}  Nd3+ {[%clk 0:00:45]} 42. Kc4 {[%clk 0:00:34]}  Ne5+ {[%clk 0:00:44]} 43. Kd4 {[%clk 0:00:33]}  Nc6+ {[%clk 0:00:38]} 44. Kc5 {[%clk 0:00:32]}  Ne7 {[%clk 0:00:38]} 45. Nc4 {[%clk 0:00:32]}  b6+ {[%clk 0:00:34]} 46. Kd4 {[%clk 0:00:31]}  Nc6+ {[%clk 0:00:27]} 47. Kc3 {[%clk 0:00:30]}  Ne5 {[%clk 0:00:26]} 48. Ne3 {[%clk 0:00:29]}  Ng6 {[%clk 0:00:26]} 49. Kd4 {[%clk 0:00:28]}  Nf4 {[%clk 0:00:26]} 50. g4 {[%clk 0:00:25]}  fxg4 {[%clk 0:00:22]} 51. hxg4 {[%clk 0:00:25]}  Ne2+ {[%clk 0:00:19]} 52. Kd3 {[%clk 0:00:24]}  Nf4+ {[%clk 0:00:19]} 53. Ke4 {[%clk 0:00:24]}  Ne2 {[%clk 0:00:16]} 54. Nf5 {[%clk 0:00:23]}  a5 {[%clk 0:00:16]} 55. bxa5 {[%clk 0:00:20]}  bxa5 {[%clk 0:00:17]} 56. Kd3 {[%clk 0:00:19]}  Ng1 {[%clk 0:00:15]} 57. Nd4+ {[%clk 0:00:18]}  Kd5 {[%clk 0:00:13]} 58. Nb5 {[%clk 0:00:17]}  Nxf3 {[%clk 0:00:09]} 59. Nc3+ {[%clk 0:00:18]}  Ke6 {[%clk 0:00:07]} 60. Ke3 {[%clk 0:00:19]}  Ne5 {[%clk 0:00:07]} 61. Nb5 {[%clk 0:00:20]}  Nxg4+ {[%clk 0:00:07]} 62. Kf3 {[%clk 0:00:18]}  Nf6 {[%clk 0:00:08]} 63. Nxc7+ {[%clk 0:00:17]}  Ke5 {[%clk 0:00:08]} 64. Nb5 {[%clk 0:00:17]}  a4 {[%clk 0:00:08]} 65. Na3 {[%clk 0:00:16]}  h5 {[%clk 0:00:08]} 66. Nc4+ {[%clk 0:00:16]}  Kd4 {[%clk 0:00:08]} 67. Nd6 {[%clk 0:00:14]}  Kd5 {[%clk 0:00:07]} 68. Nb5 {[%clk 0:00:14]}  g4+ {[%clk 0:00:06]} 69. Kg3 {[%clk 0:00:13]}  Kc5 {[%clk 0:00:06]} 70. Na3 {[%clk 0:00:11]}  Kb4 {[%clk 0:00:07]} 71. Nc2+ {[%clk 0:00:11]}  Kc3 {[%clk 0:00:07]} 72. Na3 {[%clk 0:00:11]}  Kb3 {[%clk 0:00:07]} 73. Nb1 {[%clk 0:00:09]}  a3 {[%clk 0:00:07]} 74. Nd2+ {[%clk 0:00:08]}  Kb2 {[%clk 0:00:07]} 75. Nc4+ {[%clk 0:00:07]}  Kb3 {[%clk 0:00:08]} 76. Nxa3 {[%clk 0:00:07]}  Kxa3 {[%clk 0:00:08]} 77. Kf4 {[%clk 0:00:07]}  Kb4 {[%clk 0:00:08]} 78. Kg5 {[%clk 0:00:07]}  g3 {[%clk 0:00:08]} 79. Kxf6 {[%clk 0:00:07]}  g2 {[%clk 0:00:09]} 80. Kg5 {[%clk 0:00:08]}  g1=Q+ {[%clk 0:00:09]} 81. Kxh5 {[%clk 0:00:09]}  Kc5 {[%clk 0:00:10]} 82. Kh4 {[%clk 0:00:09]}  Kd5 {[%clk 0:00:11]} 83. Kh3 {[%clk 0:00:08]}  Ke4 {[%clk 0:00:11]} 84. Kh4 {[%clk 0:00:07]}  Kf5 {[%clk 0:00:12]} 85. Kh5 {[%clk 0:00:07]}  Qg5# {[%clk 0:00:12]} 0-1


[Site "https://www.chess.com"]

[Event "Titled Tuesday Blitz November 01 Early 2022"]
[White "Ginzburg, Yakov"]
[Black "Muminova, Nafisa"]
[WhiteFideId "4157176"]
[BlackFideId "14201526"]
[WhiteElo "2305"]
[BlackElo "2258"]
[Result "1-0"]
[Round "06"]
[TimeControl "180+1"]
[Date "2022.11.02"]
[WhiteClock "0:01:28"]
[BlackClock "0:00:45"]

1. Nf3 {[%clk 0:02:58]}  d5 {[%clk 0:02:55]} 2. d4 {[%clk 0:02:58]}  Nf6 {[%clk 0:02:53]} 3. c4 {[%clk 0:02:59]}  e6 {[%clk 0:02:52]} 4. g3 {[%clk 0:02:58]}  a6 {[%clk 0:02:50]} 5. Bg2 {[%clk 0:02:57]}  dxc4 {[%clk 0:02:50]} 6. O-O {[%clk 0:02:57]}  Be7 {[%clk 0:02:43]} 7. Ne5 {[%clk 0:02:55]}  Nbd7 {[%clk 0:02:36]} 8. Nxc4 {[%clk 0:02:55]}  O-O {[%clk 0:02:33]} 9. Nc3 {[%clk 0:02:52]}  Nb6 {[%clk 0:02:13]} 10. Nxb6 {[%clk 0:02:30]}  cxb6 {[%clk 0:02:14]} 11. e4 {[%clk 0:02:19]}  Bd7 {[%clk 0:01:56]} 12. e5 {[%clk 0:02:19]}  Nd5 {[%clk 0:01:55]} 13. Nxd5 {[%clk 0:02:19]}  exd5 {[%clk 0:01:56]} 14. Bxd5 {[%clk 0:02:15]}  Bb5 {[%clk 0:01:57]} 15. Bxb7 {[%clk 0:02:12]}  Bxf1 {[%clk 0:01:55]} 16. Bxa8 {[%clk 0:02:12]}  Qxa8 {[%clk 0:01:53]} 17. Qxf1 {[%clk 0:02:12]}  Rd8 {[%clk 0:01:52]} 18. Be3 {[%clk 0:02:10]}  h5 {[%clk 0:01:50]} 19. Qg2 {[%clk 0:02:01]}  Qc8 {[%clk 0:01:48]} 20. d5 {[%clk 0:01:58]}  Qc2 {[%clk 0:01:43]} 21. d6 {[%clk 0:01:58]}  Qxb2 {[%clk 0:01:39]} 22. Rc1 {[%clk 0:01:55]}  Bf8 {[%clk 0:01:34]} 23. Qd5 {[%clk 0:01:51]}  Rd7 {[%clk 0:01:15]} 24. e6 {[%clk 0:01:45]}  Rxd6 {[%clk 0:01:10]} 25. exf7+ {[%clk 0:01:45]}  Kh7 {[%clk 0:01:09]} 26. Qxh5+ {[%clk 0:01:45]}  Rh6 {[%clk 0:01:10]} 27. Bxh6 {[%clk 0:01:45]}  gxh6 {[%clk 0:01:11]} 28. Qf5+ {[%clk 0:01:37]}  Kg7 {[%clk 0:01:09]} 29. Qg4+ {[%clk 0:01:37]}  Kf6 {[%clk 0:00:49]} 30. Rc6+ {[%clk 0:01:36]}  Kxf7 {[%clk 0:00:47]} 31. Qg6+ {[%clk 0:01:28]}  Ke7 {[%clk 0:00:46]} 32. Qe6+ {[%clk 0:01:28]}  Kd8 {[%clk 0:00:45]} 33. Rc8# {[%clk 0:01:28]} 1-0


[Site "https://www.chess.com"]

[Event "Titled Tuesday Blitz November 01 Early 2022"]
[White "Gokerkan, Cem Kaan"]
[Black "Terry, Renato"]
[WhiteFideId "6336760"]
[BlackFideId "3803457"]
[WhiteElo "2365"]
[BlackElo "2577"]
[Result "0-1"]
[Round "06"]
[TimeControl "180+1"]
[Date "2022.11.01"]
[WhiteClock "0:00:03"]
[BlackClock "0:00:12"]

1. e4 {[%clk 0:03:00]}  e6 {[%clk 0:02:59]} 2. d4 {[%clk 0:03:01]}  d5 {[%clk 0:02:59]} 3. Nd2 {[%clk 0:02:56]}  Be7 {[%clk 0:02:59]} 4. Ngf3 {[%clk 0:02:53]}  Nf6 {[%clk 0:02:59]} 5. Bd3 {[%clk 0:02:38]}  c5 {[%clk 0:02:58]} 6. exd5 {[%clk 0:02:35]}  Qxd5 {[%clk 0:02:58]} 7. dxc5 {[%clk 0:02:35]}  Qxc5 {[%clk 0:02:58]} 8. O-O {[%clk 0:02:36]}  Nbd7 {[%clk 0:02:56]} 9. Qe2 {[%clk 0:02:36]}  O-O {[%clk 0:02:54]} 10. Ne4 {[%clk 0:02:35]}  Qc7 {[%clk 0:02:54]} 11. Nxf6+ {[%clk 0:02:14]}  Nxf6 {[%clk 0:02:47]} 12. Bg5 {[%clk 0:02:13]}  b6 {[%clk 0:02:46]} 13. c4 {[%clk 0:01:43]}  Bb7 {[%clk 0:02:44]} 14. Rad1 {[%clk 0:01:40]}  Rad8 {[%clk 0:02:29]} 15. b3 {[%clk 0:01:37]}  Ng4 {[%clk 0:02:25]} 16. Be4 {[%clk 0:01:01]}  Bxg5 {[%clk 0:02:08]} 17. Bxb7 {[%clk 0:00:59]}  Bf4 {[%clk 0:02:08]} 18. Be4 {[%clk 0:00:38]}  Bxh2+ {[%clk 0:01:52]} 19. Kh1 {[%clk 0:00:38]}  Bf4 {[%clk 0:01:53]} 20. g3 {[%clk 0:00:39]}  Bh6 {[%clk 0:01:53]} 21. Kg2 {[%clk 0:00:38]}  Qc5 {[%clk 0:01:34]} 22. Nh2 {[%clk 0:00:18]}  Nf6 {[%clk 0:01:18]} 23. Bc2 {[%clk 0:00:18]}  g6 {[%clk 0:01:04]} 24. Ng4 {[%clk 0:00:18]}  Bg7 {[%clk 0:01:01]} 25. Nxf6+ {[%clk 0:00:18]}  Bxf6 {[%clk 0:01:01]} 26. Qf3 {[%clk 0:00:18]}  Kg7 {[%clk 0:01:02]} 27. Rxd8 {[%clk 0:00:18]}  Rxd8 {[%clk 0:01:02]} 28. Rd1 {[%clk 0:00:19]}  Rd4 {[%clk 0:01:02]} 29. Rxd4 {[%clk 0:00:19]}  Bxd4 {[%clk 0:01:03]} 30. Qf4 {[%clk 0:00:13]}  h5 {[%clk 0:00:59]} 31. Bd3 {[%clk 0:00:11]}  a5 {[%clk 0:00:59]} 32. Qf3 {[%clk 0:00:09]}  Qe5 {[%clk 0:00:56]} 33. Qe4 {[%clk 0:00:09]}  Qc5 {[%clk 0:00:56]} 34. Qf3 {[%clk 0:00:08]}  Qa3 {[%clk 0:00:56]} 35. Qe2 {[%clk 0:00:08]}  Qc1 {[%clk 0:00:56]} 36. Qe4 {[%clk 0:00:08]}  Qb2 {[%clk 0:00:55]} 37. Qe2 {[%clk 0:00:08]}  Qc3 {[%clk 0:00:55]} 38. Qe4 {[%clk 0:00:09]}  Bc5 {[%clk 0:00:54]} 39. Qf3 {[%clk 0:00:09]}  Qd4 {[%clk 0:00:54]} 40. Qe2 {[%clk 0:00:08]}  g5 {[%clk 0:00:52]} 41. Bc2 {[%clk 0:00:07]}  g4 {[%clk 0:00:50]} 42. Kf1 {[%clk 0:00:06]}  Qa1+ {[%clk 0:00:50]} 43. Kg2 {[%clk 0:00:07]}  Qd4 {[%clk 0:00:47]} 44. Kf1 {[%clk 0:00:07]}  f5 {[%clk 0:00:48]} 45. Ke1 {[%clk 0:00:06]}  Kf6 {[%clk 0:00:47]} 46. Kf1 {[%clk 0:00:06]}  e5 {[%clk 0:00:46]} 47. Ke1 {[%clk 0:00:05]}  Qa1+ {[%clk 0:00:45]} 48. Qd1 {[%clk 0:00:04]}  Qc3+ {[%clk 0:00:43]} 49. Kf1 {[%clk 0:00:04]}  Bd4 {[%clk 0:00:43]} 50. Qd3 {[%clk 0:00:05]}  Qa1+ {[%clk 0:00:42]} 51. Kg2 {[%clk 0:00:05]}  e4 {[%clk 0:00:42]} 52. Qd2 {[%clk 0:00:05]}  Ke6 {[%clk 0:00:38]} 53. Qh6+ {[%clk 0:00:05]}  Bf6 {[%clk 0:00:39]} 54. Qg6 {[%clk 0:00:05]}  Qxa2 {[%clk 0:00:36]} 55. Qe8+ {[%clk 0:00:05]}  Kd6 {[%clk 0:00:37]} 56. Qb8+ {[%clk 0:00:03]}  Ke6 {[%clk 0:00:29]} 57. Qc8+ {[%clk 0:00:02]}  Kf7 {[%clk 0:00:28]} 58. Qd7+ {[%clk 0:00:03]}  Kg6 {[%clk 0:00:28]} 59. Qe8+ {[%clk 0:00:03]}  Kh6 {[%clk 0:00:27]} 60. Qf8+ {[%clk 0:00:03]}  Bg7 {[%clk 0:00:27]} 61. Qd6+ {[%clk 0:00:03]}  Kh7 {[%clk 0:00:27]} 62. Bd1 {[%clk 0:00:01]}  Qb1 {[%clk 0:00:24]} 63. Be2 {[%clk 0:00:01]}  Qb2 {[%clk 0:00:24]} 64. Kf1 {[%clk 0:00:01]}  Qd4 {[%clk 0:00:19]} 65. Qe6 {[%clk 0:00:01]}  Qa1+ {[%clk 0:00:19]} 66. Kg2 {[%clk 0:00:01]}  Qf6 {[%clk 0:00:19]} 67. Qd5 {[%clk 0:00:01]}  Qe5 {[%clk 0:00:19]} 68. Qc6 {[%clk 0:00:01]}  Qf6 {[%clk 0:00:19]} 69. Qd5 {[%clk 0:00:02]}  Kg6 {[%clk 0:00:20]} 70. c5 {[%clk 0:00:02]}  bxc5 {[%clk 0:00:21]} 71. Bc4 {[%clk 0:00:03]}  Kg5 {[%clk 0:00:15]} 72. Qxc5 {[%clk 0:00:02]}  h4 {[%clk 0:00:15]} 73. gxh4+ {[%clk 0:00:02]}  Kxh4 {[%clk 0:00:16]} 74. Qd5 {[%clk 0:00:02]}  Qe5 {[%clk 0:00:12]} 75. Qf7 {[%clk 0:00:03]}  Qf6 {[%clk 0:00:11]} 76. Qg8 {[%clk 0:00:03]}  Kg5 {[%clk 0:00:11]} 77. Qd5 {[%clk 0:00:03]}  Qe5 {[%clk 0:00:11]} 78. Qf7 {[%clk 0:00:03]}  f4 {[%clk 0:00:11]} 79. Be6 {[%clk 0:00:03]}  f3+ {[%clk 0:00:12]} 80. Kg1 {[%clk 0:00:02]}  Qa1+ {[%clk 0:00:12]} 81. Kh2 {[%clk 0:00:03]}  Be5+ {[%clk 0:00:12]} 0-1


[Site "https://www.chess.com"]